bitfinex-derivatives/quotes_ETHF0:USTF0_20240924
["timestamp","ask_amount","ask_price","bid_price","bid_amount"]
[1727194631343,1.11848,2614.0,2613.9,0.38258]
[1727194631633,0.38258,2614.0,2613.9,0.38258]
[1727194631839,0.38257,2614.0,2613.9,0.38258]
[1727194632141,3.2078,2614.2,2613.9,2.69]
[1727194632335,3.2078,2614.2,2614.1,0.38255]
[1727194632336,0.38255,2614.2,2614.1,0.38255]
[1727194632736,0.38255,2614.1,2614.0,1.53076]
[1727194633542,0.38255,2614.1,2614.0,0.7638]
[1727194633742,0.38255,2614.1,2614.0,0.3676]
[1727194634238,1.49405,2614.2,2614.1,0.38255]
[1727194634947,0.38255,2614.1,2614.0,0.75016]
[1727194635139,1.49405,2614.2,2614.1,0.38255]
[1727194635339,1.49405,2614.2,2614.0,0.75016]
[1727194635743,0.38255,2614.1,2614.0,0.75017]
[1727194636445,0.38255,2614.1,2614.0,0.75016]
[1727194636844,1.49405,2614.2,2614.1,0.38255]
[1727194637641,0.9563,2614.4,2614.0,0.3676]
[1727194637944,0.38255,2614.2,2614.1,0.38255]
[1727194638337,0.3821,2614.4,2614.2,0.38254]
[1727194638540,3.2968,2615.0,2614.3,2.69]
[1727194638742,3.2968,2615.0,2614.4,0.7926]
[1727194638743,0.38247,2614.7,2614.4,0.7926]
[1727194639249,0.38246,2614.8,2614.7,0.38246]
[1727194639632,4.91199,2615.0,2614.6,0.38247]
[1727194639633,0.38247,2614.7,2614.6,0.38247]
[1727194639838,0.38247,2614.7,2614.5,0.3847]
[1727194639839,0.38246,2614.8,2614.7,0.38246]
[1727194640250,0.38245,2614.9,2614.5,0.3847]
[1727194640443,0.38245,2614.8,2614.5,0.3847]
[1727194640639,0.38245,2614.8,2614.7,0.38247]
[1727194641346,1.70419,2615.0,2614.6,0.38247]
[1727194641347,0.38247,2614.7,2614.6,0.38247]
[1727194641644,0.38246,2614.8,2614.7,0.38246]
[1727194642441,1.70419,2615.0,2614.5,0.3847]
[1727194642644,0.38247,2614.7,2614.6,0.38248]
[1727194643149,0.38246,2614.8,2614.7,0.38246]
[1727194643348,0.38247,2614.7,2614.6,0.38247]
[1727194643850,0.38246,2614.8,2614.6,0.38247]
[1727194644251,1.70417,2615.0,2614.6,0.38247]
[1727194644451,0.38247,2614.8,2614.6,0.38247]
[1727194644650,0.38247,2614.7,2614.6,0.38247]
[1727194645157,7.47098,2614.7,2614.3,0.38252]
[1727194645454,0.38253,2614.3,2614.2,1.225]
[1727194646345,4.02885,2614.3,2614.2,1.225]
[1727194646541,0.38257,2614.0,2613.9,0.76088]
[1727194647256,0.38257,2614.1,2614.0,0.38257]
[1727194648153,0.38255,2614.2,2613.9,3.0683]
[1727194648351,3.9929,2614.4,2614.0,0.38256]
[1727194649450,0.38255,2614.2,2614.0,0.38256]
[1727194649854,3.9929,2614.4,2614.1,0.38255]
[1727194650251,0.38254,2614.3,2614.1,0.38255]
[1727194650754,0.38254,2614.2,2614.0,0.38256]
[1727194651053,0.38258,2613.9,2613.8,5.3585913]
[1727194651252,0.95636,2614.2,2613.8,4.35689]
[1727194651752,0.38258,2614.0,2613.8,4.35689]
[1727194652257,0.38258,2614.0,2613.9,0.38258]
[1727194652445,2.69,2614.3,2613.9,0.38258]
[1727194652652,3.64633,2614.3,2613.9,0.38258]
[1727194652849,0.38257,2614.0,2613.9,0.38258]
[1727194653051,0.38256,2614.1,2614.0,0.38256]
[1727194653257,0.38258,2614.0,2613.9,0.38258]
[1727194653552,0.38258,2613.9,2613.8,4.35689]
[1727194653755,0.38257,2614.0,2613.9,0.38258]
[1727194653948,0.38256,2614.1,2614.0,0.38256]
[1727194655355,0.38257,2614.0,2613.9,0.38257]
[1727194655558,0.38257,2614.1,2614.0,0.38257]
[1727194659152,0.38257,2614.0,2613.9,0.38257]
[1727194659960,0.38258,2613.9,2613.8,5.3585913]
[1727194660256,1.33905,2613.9,2613.8,3.80594976]
[1727194660456,1.71705,2613.9,2613.8,3.2078]
[1727194662747,0.76058,2613.9,2613.8,3.2078]
[1727194662950,0.3826,2613.8,2613.7,0.38261]
[1727194663164,0.38261,2613.7,2613.6,0.78382]
[1727194663353,0.38261,2613.7,2613.6,0.38262]
[1727194663552,0.3826,2613.8,2613.7,0.38261]
[1727194665762,0.378,2613.9,2613.5,3.6006]
[1727194665958,0.38261,2613.8,2613.7,0.38261]
[1727194666664,0.38263,2613.7,2613.6,0.38262]
[1727194666852,0.38263,2613.6,2613.5,0.3928]
[1727194667454,0.75083,2613.6,2613.5,0.3928]
[1727194668359,0.75083,2613.6,2613.5,0.77544]
[1727194668568,0.75083,2613.6,2613.5,0.3928]
[1727194668753,0.75083,2613.6,2613.5,0.77544]
[1727194670264,0.75083,2613.6,2613.5,0.3928]
[1727194670464,0.75083,2613.6,2613.5,0.77544]
[1727194670661,0.75083,2613.6,2613.5,0.3928]
[1727194672871,0.75083,2613.6,2613.5,0.77544]
[1727194673060,0.38262,2613.7,2613.5,0.3928]
[1727194673373,0.38262,2613.7,2613.6,0.38263]
[1727194673965,0.38263,2613.6,2613.5,3.98324]
[1727194674165,0.38262,2613.7,2613.6,0.38263]
[1727194676772,0.3826,2613.9,2613.8,0.3826]
[1727194677472,0.3826,2613.8,2613.7,0.3826]
[1727194679168,0.38259,2613.9,2613.8,0.38259]
[1727194679365,1.35771,2614.1,2613.7,0.3826]
[1727194679366,0.3826,2613.8,2613.7,0.3826]
[1727194680462,0.38259,2613.9,2613.8,0.38259]
[1727194680663,0.38258,2614.0,2613.9,0.38258]
[1727194683076,1.71415,2614.3,2613.6,3.64657]
[1727194683267,0.95636,2614.2,2613.9,0.38257]
[1727194683577,0.95636,2614.2,2614.1,0.38255]
[1727194683578,0.38255,2614.2,2614.1,0.38255]
[1727194683779,0.7578,2614.3,2614.0,0.77516]
[1727194683780,0.38255,2614.1,2614.0,0.77516]
[1727194683976,0.38255,2614.2,2614.1,0.38255]
[1727194685073,0.38251,2614.5,2614.3,0.38252]
[1727194685381,0.38251,2614.5,2614.4,1.13161]
[1727194685676,0.38251,2614.5,2614.0,1.34903]
[1727194685677,0.95625,2614.5,2614.0,0.3926]
[1727194685876,0.38253,2614.3,2614.2,0.38254]
[1727194686076,0.3675,2614.4,2614.1,0.7491]
[1727194686383,0.38254,2614.2,2614.1,0.3858]
[1727194686567,0.38254,2614.2,2614.0,0.77516]
[1727194686568,0.38255,2614.1,2614.0,0.3926]
[1727194686770,0.3826,2613.8,2613.7,4.138]
[1727194686970,3.0915,2614.0,2613.6,0.38262]
[1727194687165,1.35793,2614.0,2613.6,0.38262]
[1727194687577,0.38261,2613.8,2613.6,0.38262]
[1727194687977,0.38261,2613.7,2613.6,0.38262]
[1727194688374,0.38261,2613.8,2613.6,0.38262]
[1727194690080,0.95648,2613.9,2613.5,1.1]
[1727194690387,0.3898,2613.7,2613.5,1.48264]
[1727194690576,0.77242,2613.7,2613.5,1.48264]
[1727194691277,0.38263,2613.6,2613.5,0.7367]
[1727194691483,0.38263,2613.6,2613.5,0.97152707]
[1727194691682,0.38264,2613.5,2613.4,3.2078]
[1727194692182,0.38267,2613.3,2613.2,1.0017013]
[1727194692386,0.38267,2613.3,2613.0,0.38271]
[1727194692387,2.69,2613.4,2613.0,1.0017013]
[1727194692587,0.3827,2613.1,2612.9,5.3374213]
[1727194692881,3.2078,2613.5,2612.9,1.7469013]
[1727194693086,0.9566,2613.6,2613.2,0.38268]
[1727194693273,5.8978,2613.8,2613.3,0.3894]
[1727194693274,6.85432,2613.8,2613.3,0.3894]
[1727194693474,6.85432,2613.8,2613.4,0.775]
[1727194693475,0.38264,2613.6,2613.4,0.775]
[1727194693681,6.85432,2613.8,2613.4,1.15765]
[1727194693682,0.38262,2613.7,2613.4,1.15765]
[1727194693875,3.2078,2613.8,2613.7,0.38261]
[1727194694379,1.1911,2614.3,2613.9,0.38258]
[1727194694380,0.38256,2614.1,2613.9,0.38258]
[1727194695081,1.1911,2614.3,2613.8,3.2078]
[1727194695281,0.38252,2614.4,2614.1,0.38254]
[1727194695479,0.38252,2614.4,2614.2,0.77194]
[1727194696392,3.98891,2614.5,2614.2,0.77194]
[1727194696889,0.38252,2614.4,2614.2,0.3894]
[1727194697787,3.98891,2614.5,2614.2,0.77194]
[1727194698275,3.6064,2614.5,2614.3,0.38252]
[1727194698492,3.577,2614.9,2614.2,6.9042]
[1727194698783,3.2078,2614.9,2614.8,0.38245]
[1727194699093,4.35828,2615.3,2615.0,0.38242]
[1727194699296,0.38239,2615.2,2615.0,0.38242]
[1727194699494,1.15049,2615.3,2615.0,0.3802]
[1727194699793,0.38241,2615.1,2615.0,0.3802]
[1727194700485,0.7681,2615.3,2615.0,0.3802]
[1727194700689,0.38241,2615.1,2615.0,0.3802]
[1727194700882,0.7681,2615.3,2615.1,0.3824]
[1727194701082,1.15048,2615.3,2615.0,0.76262]
[1727194701284,0.3824,2615.2,2615.0,0.76262]
[1727194701484,0.7681,2615.3,2615.0,0.76262]
[1727194701485,1.15049,2615.3,2615.0,0.76262]
[1727194702091,0.3824,2615.2,2615.0,0.76262]
[1727194702282,0.38239,2615.2,2615.0,0.3802]
[1727194702487,3.4581,2615.3,2614.7,3.2078]
[1727194702686,3.4581,2615.3,2614.7,3.6012]
[1727194702986,0.3824,2615.2,2615.0,0.38242]
[1727194703686,0.3824,2615.2,2614.9,0.38243]
[1727194704181,0.38243,2615.0,2614.7,0.77586]
[1727194704383,3.2078,2615.1,2614.7,0.77586]
[1727194704589,0.38243,2615.0,2614.7,0.77586]
[1727194704789,3.59022,2615.1,2614.8,0.38245]
[1727194704991,0.38242,2615.1,2614.8,0.38245]
[1727194706079,0.38243,2615.0,2614.8,0.38245]
[1727194708387,3.4581,2615.3,2614.8,0.38245]
[1727194709292,0.7681,2615.3,2614.7,3.6012]
[1727194709501,0.7681,2615.3,2614.9,0.38243]
[1727194709502,0.38241,2615.1,2614.9,0.38243]
[1727194709799,0.3824,2615.2,2614.9,0.38243]
[1727194710094,0.38241,2615.1,2615.0,0.3631]
[1727194710999,0.7681,2615.3,2615.0,0.3631]
[1727194711294,0.3824,2615.2,2615.0,0.74552]
[1727194712194,0.7681,2615.3,2615.0,0.3631]
[1727194712400,0.396,2615.3,2615.2,0.38239]
[1727194712696,3.2078,2615.4,2615.3,0.38238]
[1727194712893,3.59018,2615.4,2615.2,0.38239]
[1727194713094,3.59018,2615.4,2615.2,0.3937]
[1727194713290,3.59017,2615.4,2615.2,0.77609]
[1727194714386,3.59017,2615.4,2615.2,0.3937]
[1727194714387,0.38238,2615.3,2615.2,0.3937]
[1727194715494,0.38238,2615.3,2615.1,0.3824]
[1727194716095,3.59018,2615.4,2615.2,0.38239]
[1727194716401,3.59018,2615.4,2615.0,0.3631]
[1727194716402,0.38238,2615.3,2615.1,0.3824]
[1727194716900,0.38239,2615.2,2615.0,0.74552]
[1727194717200,0.95596,2615.3,2614.9,0.3974]
[1727194717391,3.2078,2615.4,2614.5,4.5273]
[1727194717392,6.6502,2615.1,2614.5,4.5273]
[1727194717596,0.38245,2614.8,2614.5,4.9123]
[1727194717897,7.60625,2615.1,2614.5,4.9123]
[1727194717898,4.91625,2615.1,2614.5,4.9123]
[1727194718093,0.38244,2614.9,2614.7,0.38246]
[1727194718694,0.38245,2614.8,2614.7,0.38246]
[1727194719207,0.38245,2614.9,2614.7,0.38246]
[1727194720399,0.38245,2614.8,2614.7,0.38246]
[1727194722396,0.38245,2614.8,2614.6,6.28027]
[1727194723100,0.38245,2614.8,2614.7,0.38247]
[1727194724407,1.70844,2615.1,2614.6,5.8978]
[1727194724704,0.3824,2614.9,2614.8,0.3824]
[1727194724901,1.70834,2615.1,2614.8,0.3824]
[1727194724902,0.7524,2615.1,2614.8,2.69]
[1727194725098,0.38238,2615.1,2615.0,3.07238]
[1727194725403,1.7071,2615.5,2615.0,2.69]
[1727194725611,0.38235,2615.3,2615.0,4.666]
[1727194725906,0.38235,2615.3,2615.2,0.38235]
[1727194726103,0.38237,2615.1,2615.0,5.04838]
[1727194726305,0.38237,2615.1,2615.0,2.35838]
[1727194726496,0.38236,2615.2,2615.1,0.38237]
[1727194726692,0.38237,2615.1,2615.0,1.98349]
[1727194726897,0.38237,2615.1,2615.0,0.76749]
[1727194727096,0.38237,2615.1,2615.0,0.3851]
[1727194727301,0.95586,2615.3,2615.0,0.3851]
[1727194727503,0.95584,2615.4,2615.0,0.3851]
[1727194727708,0.38237,2615.1,2615.0,0.76748]
[1727194728603,1.70711,2615.5,2615.0,0.76748]
[1727194728604,0.7513,2615.5,2615.0,12.8991]
[1727194728797,3.5751,2615.7,2615.4,3.07232]
[1727194728993,3.5751,2615.7,2615.5,0.7806]
[1727194728994,0.74959,2615.7,2615.5,0.7806]
[1727194729206,0.74959,2615.7,2615.5,0.3983]
[1727194729207,0.38229,2615.7,2615.5,0.3983]
[1727194729413,0.95552,2616.3,2615.6,6.5132]
[1727194729705,0.3915,2616.3,2616.2,0.38221]
[1727194729911,0.3915,2616.3,2616.1,0.38222]
[1727194729912,0.7737,2616.3,2616.1,0.38222]
[1727194730203,0.38221,2616.2,2616.1,0.3983]
[1727194730604,0.7737,2616.3,2616.1,0.3983]
[1727194730800,0.7737,2616.3,2616.1,0.78052]
[1727194731398,0.38221,2616.2,2616.1,0.3983]
[1727194731607,0.77371,2616.3,2616.1,0.78052]
[1727194731906,0.38221,2616.2,2616.1,0.3983]
[1727194732913,0.7737,2616.3,2616.1,0.3983]
[1727194733408,0.38221,2616.2,2616.1,0.3983]
[1727194735411,3.2078,2616.5,2616.1,10.60292]
[1727194735710,0.3822,2616.3,2616.1,1.54582]
[1727194735908,0.3822,2616.3,2616.1,1.1636]
[1727194736106,0.3822,2616.3,2616.2,3.8224]
[1727194736303,3.2078,2616.5,2616.2,3.8224]
[1727194736610,3.2078,2616.5,2616.1,1.54582]
[1727194736808,0.3822,2616.3,2616.1,1.54582]
[1727194737307,3.2078,2616.5,2616.1,1.14372]
[1727194737308,0.38221,2616.2,2616.1,1.14372]
[1727194737612,0.3822,2616.3,2616.1,0.7615]
[1727194737910,3.2078,2616.5,2616.4,0.38218]
[1727194738206,0.7679,2616.7,2616.6,0.38215]
[1727194738207,0.3886,2616.7,2616.6,0.38215]
[1727194738411,3.9393,2617.1,2616.8,0.38212]
[1727194738612,0.3744,2617.0,2616.7,0.38213]
[1727194738907,0.38212,2616.9,2616.8,0.38212]
[1727194739102,0.38212,2616.9,2616.7,0.3943]
[1727194739307,0.38212,2616.9,2616.7,0.77642]
[1727194739614,0.38212,2616.8,2616.7,0.3943]
[1727194740410,0.38215,2616.6,2616.5,0.74496]
[1727194740605,0.38213,2616.8,2616.6,0.38214]
[1727194741313,0.38214,2616.7,2616.6,0.38214]
[1727194741511,0.38215,2616.6,2616.5,0.74496]
[1727194741706,0.38215,2616.6,2616.5,1.95996]
[1727194741908,0.95528,2616.9,2616.5,1.95996]
[1727194742609,0.38215,2616.6,2616.5,1.5778]
[1727194742801,0.38215,2616.6,2616.5,1.95997]
[1727194743205,0.38215,2616.6,2616.4,6.2921]
[1727194743411,0.77667,2616.5,2616.4,3.2078]
[1727194744015,1.73209,2616.5,2616.4,3.2078]
[1727194746015,0.95546,2616.4,2616.0,7.89303]
[1727194746315,0.38221,2616.2,2616.1,0.38222]
[1727194746614,0.3822,2616.3,2616.2,0.3822]
[1727194746814,3.2078,2616.8,2616.2,0.3822]
[1727194746815,0.103,2617.5,2616.3,3.8224]
[1727194747023,0.3714,2617.3,2617.2,0.38206]
[1727194747322,0.3714,2617.6,2617.5,0.38202]
[1727194747519,0.3714,2617.6,2617.5,3.07202]
[1727194748319,0.7548,2617.9,2617.5,3.07202]
[1727194748320,0.77927,2617.9,2617.7,0.38199]
[1727194748511,0.77927,2617.9,2617.8,2.69]
[1727194748816,0.3973,2617.9,2617.8,3.07198]
[1727194749113,4.94799331,2618.3,2618.0,0.38193]
[1727194749317,4.94799331,2618.3,2618.2,2.69]
[1727194749318,5.32989331,2618.3,2618.2,2.69]
[1727194749513,0.3973,2618.4,2618.2,2.69]
[1727194750018,0.3819,2618.3,2618.2,2.69]
[1727194750315,0.38192,2618.2,2618.0,3.905]
[1727194750504,3.6051,2618.4,2618.0,3.905]
[1727194751008,0.38193,2618.1,2618.0,2.69]
[1727194751811,4.55985,2618.4,2617.8,3.905]
[1727194752020,0.38193,2618.1,2618.0,2.69]
[1727194753615,0.3973,2618.4,2618.0,2.69]
[1727194753809,0.77919,2618.4,2618.3,2.69]
[1727194755021,4.52849,2618.6,2618.3,2.69]
[1727194755022,3.2078,2618.6,2618.3,2.69]
[1727194755215,0.38186,2618.6,2618.5,2.69]
[1727194755823,0.3819,2618.4,2618.3,2.69]
[1727194759420,0.38193,2618.2,2618.1,2.69]
[1727194760928,0.38192,2618.2,2618.1,2.69]
[1727194761925,0.3985,2618.3,2618.1,2.69]
[1727194762424,0.38192,2618.2,2618.1,2.69]
[1727194766419,0.78041,2618.3,2618.1,3.07193]
[1727194766919,0.38192,2618.2,2618.1,2.69]
[1727194767620,0.3985,2618.3,2618.1,3.07193]
[1727194767836,0.38192,2618.2,2618.1,2.69]
[1727194769317,0.3916,2618.4,2618.2,0.38191]
[1727194769524,0.3916,2618.4,2618.1,2.69]
[1727194769525,0.3819,2618.4,2618.3,2.69]
[1727194771024,0.38193,2618.2,2618.1,2.69]
[1727194772824,4.55156,2618.6,2618.1,2.69]
[1727194772825,0.38189,2618.4,2618.1,6.5092]
[1727194773019,0.38189,2618.4,2618.3,2.69]
[1727194773323,0.38189,2618.4,2618.3,3.0719]
[1727194773520,0.38189,2618.4,2618.3,2.69]
[1727194776023,0.7752,2618.8,2618.3,2.69]
[1727194776223,0.77063,2618.8,2618.7,2.69]
[1727194777628,0.3675,2618.9,2618.7,2.69]
[1727194777817,0.38183,2618.8,2618.7,2.69]
[1727194778231,0.74932,2618.9,2618.7,3.07184]
[1727194778532,0.38182,2618.9,2618.7,3.07184]
[1727194778728,0.38182,2618.9,2618.8,0.3735]
[1727194779135,0.38182,2618.9,2618.8,0.7434]
[1727194779322,0.38181,2619.0,2618.8,1.12523]
[1727194779518,0.38181,2619.0,2618.9,3.0833]
[1727194781635,0.38181,2619.0,2618.9,2.69]
[1727194782031,1.71496,2619.2,2618.8,2.69]
[1727194782335,0.38182,2618.9,2618.8,2.69]
[1727194782825,0.95451,2619.0,2618.8,3.07182]
[1727194782826,0.38181,2619.0,2618.8,3.07182]
[1727194783038,0.38182,2618.9,2618.7,2.71573]
[1727194783227,1.71496,2619.2,2618.8,0.38183]
[1727194783422,0.38179,2619.1,2619.0,2.69]
[1727194783739,3.2078,2619.4,2619.1,0.38178]
[1727194784030,3.2078,2619.4,2619.2,0.74747]
[1727194784031,0.38177,2619.3,2619.2,0.74747]
[1727194784225,3.2078,2619.4,2619.3,3.07176]
[1727194784226,3.58955,2619.4,2619.3,3.07176]
[1727194784426,3.2078,2619.4,2619.3,3.07176]
[1727194784630,3.2078,2619.4,2619.3,3.46456]
[1727194784832,3.2078,2619.4,2619.3,3.83976]
[1727194785032,3.58954,2619.4,2619.3,3.458]
[1727194786623,0.7521,2619.7,2619.3,3.458]
[1727194786624,0.38174,2619.5,2619.3,3.83976]
[1727194786824,0.38174,2619.5,2619.4,2.69]
[1727194787336,0.38173,2619.5,2619.4,2.69]
[1727194790223,0.38173,2619.5,2619.4,3.07174]
[1727194790634,0.38172,2619.6,2619.4,3.07173]
[1727194790835,0.7693,2619.8,2619.4,2.69]
[1727194791037,0.38171,2619.7,2619.6,2.69]
[1727194791336,0.38171,2619.7,2619.6,3.07171]
[1727194791526,0.38171,2619.7,2619.6,2.69]
[1727194791923,3.2968,2620.3,2619.6,7.7156]
[1727194792132,0.38168,2619.9,2619.7,0.3694]
[1727194792333,0.38168,2619.9,2619.7,0.75109]
[1727194792639,0.38168,2619.9,2619.8,0.38168]
[1727194792833,0.38167,2620.0,2619.8,0.38168]
[1727194793044,0.38167,2619.9,2619.7,0.75109]
[1727194793337,0.38167,2619.9,2619.8,2.69]
[1727194793736,0.7797,2620.2,2619.9,0.38166]
[1727194793927,0.7797,2620.2,2620.0,3.07166]
[1727194794126,0.7797,2620.2,2620.0,3.46346]
[1727194795042,1.16133,2620.2,2620.0,3.0818]
[1727194795232,1.16133,2620.2,2620.0,3.46345]
[1727194795432,1.16133,2620.2,2620.0,3.0818]
[1727194795834,0.38161,2620.4,2620.2,0.38162]
[1727194796138,0.38161,2620.4,2620.3,2.69]
[1727194796845,0.0376832,2620.5,2620.4,0.3816]
[1727194797139,0.0376832,2620.5,2620.4,7.7712]
[1727194797332,0.0376832,2620.5,2620.4,8.1496]
[1727194799936,0.0376832,2620.5,2620.4,3.952]
[1727194799937,0.4192632,2620.5,2620.4,3.952]
[1727194800144,0.4192632,2620.5,2620.4,0.7442]
[1727194800339,0.4192632,2620.5,2620.3,4.27961]
[1727194800340,0.3816,2620.4,2620.3,2.69]
[1727194800536,0.38161,2620.3,2620.2,2.69]
[1727194801745,1.33565,2620.3,2620.2,2.69]
[1727194802042,5.15245,2620.3,2620.2,2.69]
[1727194802446,1.33565,2620.3,2620.2,2.69]
[1727194802737,5.15245,2620.3,2620.2,2.69]
[1727194805752,6.10649,2620.3,2620.2,2.69]
[1727194806042,7.0246,2620.3,2619.6,0.3993]
[1727194806247,7.0246,2620.3,2619.6,2.69]
[1727194806248,8.93282,2620.2,2619.6,2.69]
[1727194806434,1.33585,2619.9,2619.8,2.69]
[1727194806645,4.54365,2619.9,2619.8,2.69]
[1727194806845,9.12785,2619.9,2619.8,2.69]
[1727194807037,5.92005,2619.9,2619.8,2.69]
[1727194807238,9.12785,2619.9,2619.8,2.69]
[1727194807950,10.08203,2619.9,2619.8,2.69]
[1727194808149,7.792,2619.9,2619.6,2.69]
[1727194808343,0.38173,2619.5,2619.4,2.69]
[1727194808647,0.38168,2619.8,2619.6,0.38171]
[1727194808843,0.38168,2619.8,2619.7,0.7631]
[1727194809156,0.76923,2620.2,2620.0,0.38165]
[1727194809448,0.76923,2620.2,2620.1,2.69]
[1727194809449,1.72331,2620.2,2620.1,2.69]
[1727194810647,5.54011,2620.2,2620.1,2.69]
[1727194811451,4.2044,2620.2,2619.9,2.69]
[1727194811637,1.33593,2619.8,2619.7,2.69]
[1727194812647,1.3359,2619.8,2619.7,2.69]
[1727194813451,0.38171,2619.6,2619.5,2.69]
[1727194819944,0.38171,2619.7,2619.5,3.07173]
[1727194820255,0.38171,2619.7,2619.6,2.69]
[1727194822459,45.8113364,2620.9,2619.6,9.7154]
[1727194822649,0.38162,2620.3,2620.1,2.69]
[1727194822962,1.16671,2620.4,2620.2,3.83252]
[1727194823154,0.0376832,2620.5,2620.4,0.3816]
[1727194823453,0.4192732,2620.5,2620.4,2.69]
[1727194824046,1.3732332,2620.5,2620.4,2.69]
[1727194824963,1.3732332,2620.5,2620.2,3.4509]
[1727194824964,0.38161,2620.3,2620.2,3.4509]
[1727194825554,0.38161,2620.3,2620.2,3.83253]
[1727194825757,0.38161,2620.3,2620.2,3.4509]
[1727194825953,0.0376832,2620.5,2620.2,3.4509]
[1727194826149,0.4192632,2620.5,2620.4,2.69]
[1727194826559,1.3732232,2620.5,2620.4,2.69]
[1727194827063,0.4192632,2620.5,2620.4,2.69]
[1727194827860,0.4192632,2620.5,2620.4,3.0716]
[1727194828065,0.4192632,2620.5,2620.4,2.69]
[1727194828461,0.0376832,2620.5,2620.4,3.0716]
[1727194828964,0.4192632,2620.5,2620.4,3.0716]
[1727194829755,0.4192632,2620.5,2620.4,2.69]
[1727194831164,0.4192632,2620.5,2620.4,3.0716]
[1727194831365,0.4192632,2620.5,2620.4,2.69]
[1727194832160,0.4192632,2620.5,2620.4,3.0716]
[1727194832161,0.0376832,2620.5,2620.4,3.0716]
[1727194832763,0.4192632,2620.5,2620.4,3.0716]
[1727194833864,0.0376832,2620.5,2620.4,3.0716]
[1727194835072,0.4192632,2620.5,2620.4,3.0716]
[1727194835264,0.0376832,2620.5,2620.4,3.0716]
[1727194835868,0.4192632,2620.5,2620.4,2.69]
[1727194837776,1.3732232,2620.5,2620.4,2.69]
[1727194838170,0.4192632,2620.5,2620.4,2.69]
[1727194838668,0.4192632,2620.5,2620.4,3.0716]
[1727194838868,0.4192632,2620.5,2620.4,2.69]
[1727194839068,0.4192632,2620.5,2620.4,3.0716]
[1727194839270,0.0376832,2620.5,2620.4,3.0716]
[1727194839472,0.4192632,2620.5,2620.4,2.69]
[1727194840272,1.3732232,2620.5,2620.4,2.69]
[1727194842367,0.4192632,2620.5,2620.4,2.69]
[1727194843374,1.3732232,2620.5,2620.4,2.69]
[1727194843676,1.3732232,2620.5,2620.2,3.4509]
[1727194843677,1.33565,2620.3,2620.2,3.4509]
[1727194843873,1.33575,2620.1,2620.0,2.69]
[1727194845979,1.69921,2620.4,2620.0,2.69]
[1727194846275,0.38162,2620.3,2620.2,2.69]
[1727194846465,0.38162,2620.3,2620.2,3.0576]
[1727194847872,0.0376832,2620.5,2620.2,3.0576]
[1727194848074,0.3816,2620.4,2620.3,0.3918]
[1727194849676,0.3816,2620.4,2620.3,3.0818]
[1727194849977,0.3816,2620.4,2620.3,2.69]
[1727194850376,1.3356,2620.4,2620.3,2.69]
[1727194850776,0.3816,2620.4,2620.3,2.69]
[1727194851277,0.4192732,2620.5,2620.3,2.69]
[1727194851480,0.3816,2620.4,2620.3,3.088]
[1727194853577,0.38163,2620.2,2620.1,2.69]
[1727194855093,0.38163,2620.2,2619.9,3.2078]
[1727194855275,0.38166,2620.0,2619.8,3.07168]
[1727194855475,0.38165,2620.1,2619.9,3.07166]
[1727194856288,0.38165,2620.1,2619.9,3.07167]
[1727194856480,0.38163,2620.2,2619.9,2.69]
[1727194856687,0.38165,2620.1,2619.9,0.38167]
[1727194856881,0.38166,2620.0,2619.8,1.58267]
[1727194857185,0.38164,2620.2,2619.8,1.201]
[1727194857386,0.38164,2620.2,2620.1,2.69]
[1727194857580,0.95402,2620.4,2620.1,2.69]
[1727194857884,0.38163,2620.2,2620.1,2.69]
[1727194858995,0.38162,2620.3,2620.1,3.07163]
[1727194859297,0.38162,2620.3,2620.2,0.774]
[1727194859497,0.38162,2620.3,2620.2,1.1542]
[1727194860792,0.38162,2620.3,2620.2,0.7805]
[1727194862391,0.38163,2620.2,2620.1,2.69]
[1727194862586,0.75763,2620.2,2620.1,2.69]
[1727194862892,0.75763,2620.2,2619.9,1.15677]
[1727194862893,0.38166,2620.0,2619.9,0.4019]
[1727194863196,0.95415,2620.0,2619.7,2.69]
[1727194863385,0.95415,2620.0,2619.6,3.2078]
[1727194863386,0.3817,2619.7,2619.6,3.2078]
[1727194864397,0.38169,2619.8,2619.6,3.2078]
[1727194864592,0.38169,2619.8,2619.7,2.69]
[1727194865098,0.38167,2619.9,2619.7,2.69]
[1727194865288,0.38168,2619.8,2619.7,2.69]
[1727194865598,1.32112,2620.1,2619.7,3.07169]
[1727194865599,0.38168,2619.9,2619.7,3.07169]
[1727194865806,0.38168,2619.9,2619.8,2.69]
[1727194866098,1.33586,2619.9,2619.8,2.69]
[1727194866400,0.38169,2619.8,2619.6,3.07171]
[1727194866583,0.38169,2619.8,2619.6,2.69]
[1727194866893,0.3817,2619.7,2619.6,2.69]
[1727194867516,1.3361,2619.4,2619.3,3.2078]
[1727194867796,0.38179,2619.1,2619.0,2.69]
[1727194867993,0.7587,2619.6,2619.0,2.69]
[1727194867994,0.38175,2619.4,2619.1,0.38178]
[1727194868195,2.08641,2619.6,2619.2,2.69]
[1727194868389,0.38175,2619.4,2619.3,0.3633]
[1727194872200,0.38175,2619.4,2618.8,4.57173501]
[1727194872201,0.38184,2618.8,2618.6,4.06528501]